[Event "*** Titled Tuesday 3|2 Blitz"]
[Site "Chess.com"]
[Date "2017.05.02"]
[Round "3"]
[White "MagnusCarlsen"]
[Black "Rodalquilar"]
[Result "1-0"]
[WhiteElo "2972"]
[BlackElo "2540"]
[TimeControl "180+2"]
[EndTime "13:34:56 PDT"]
[Termination "MagnusCarlsen won by resignation"]

1. e4 {[%clk 0:03:01.1]} 1... e5 {[%clk 0:03:00.5]} 2. Nf3 {[%clk 0:03:01.8]}
2... Nc6 {[%clk 0:03:01.9]} 3. Bc4 {[%clk 0:03:02.3]} 3... d6 {[%clk 0:03:02.9]}
4. d4 {[%clk 0:03:00.6]} 4... exd4 {[%clk 0:03:04]} 5. Nxd4 {[%clk 0:03:01.6]}
5... g6 {[%clk 0:03:05.5]} 6. Nc3 {[%clk 0:02:59.6]} 6... Bg7 {[%clk 0:03:05.7]}
7. Be3 {[%clk 0:03:00.3]} 7... Nf6 {[%clk 0:02:57.6]} 8. f3 {[%clk 0:02:46.9]}
8... O-O {[%clk 0:02:57.5]} 9. Qd2 {[%clk 0:02:38.7]} 9... Ne5 {[%clk
0:02:53.4]} 10. Be2 {[%clk 0:02:21.3]} 10... a6 {[%clk 0:02:48.7]} 11. O-O
{[%clk 0:02:11.9]} 11... c5 {[%clk 0:02:28.4]} 12. Nb3 {[%clk 0:02:12.3]} 12...
b5 {[%clk 0:02:30]} 13. Rad1 {[%clk 0:02:07.2]} 13... Nc4 {[%clk 0:02:27.6]} 14.
Bxc4 {[%clk 0:02:07.4]} 14... bxc4 {[%clk 0:02:29.5]} 15. Nc1 {[%clk 0:02:09]}
15... Qb6 {[%clk 0:01:39.2]} 16. N1e2 {[%clk 0:01:56.4]} 16... Be6 {[%clk
0:01:24.9]} 17. b3 {[%clk 0:01:22.7]} 17... Rfd8 {[%clk 0:01:21.3]} 18. Nf4
{[%clk 0:01:22.2]} 18... Qb4 {[%clk 0:00:53.1]} 19. Na4 {[%clk 0:00:57.1]} 19...
Qxd2 {[%clk 0:00:37.5]} 20. Rxd2 {[%clk 0:00:58.2]} 20... cxb3 {[%clk
0:00:25.2]} 21. axb3 {[%clk 0:00:59.2]} 21... Bh6 {[%clk 0:00:14.9]} 22. Kf2
{[%clk 0:00:53.9]} 22... c4 {[%clk 0:00:11.1]} 23. Nxe6 {[%clk 0:00:51.4]} 23...
Bxe3+ {[%clk 0:00:11.7]} 24. Kxe3 {[%clk 0:00:53.3]} 24... fxe6 {[%clk
0:00:12.3]} 25. Nb6 {[%clk 0:00:54.1]} 25... c3 {[%clk 0:00:12]} 26. Rd3 {[%clk
0:00:55.2]} 26... Rab8 {[%clk 0:00:11.9]} 27. Na4 {[%clk 0:00:55.3]} 27... d5
{[%clk 0:00:12]} 28. Rfd1 {[%clk 0:00:54.1]} 28... Rdc8 {[%clk 0:00:06.3]} 29.
h3 {[%clk 0:00:39.6]} 29... Rb4 {[%clk 0:00:06.8]} 30. Rxc3 {[%clk 0:00:35.8]}
30... Rd8 {[%clk 0:00:03.7]} 31. Rc6 {[%clk 0:00:26.8]} 31... Re8 {[%clk
0:00:03.1]} 32. Nc5 {[%clk 0:00:26.1]} 32... dxe4 {[%clk 0:00:04.3]} 33. fxe4
{[%clk 0:00:27.2]} 33... Nh5 {[%clk 0:00:04.1]} 34. Nxe6 {[%clk 0:00:23.8]}
34... Rb5 {[%clk 0:00:03]} 35. Rd5 {[%clk 0:00:20.1]} 35... Rbb8 {[%clk
0:00:02.1]} 36. Rxa6 {[%clk 0:00:19.5]} 36... Nf6 {[%clk 0:00:02.9]} 37. Rd4
{[%clk 0:00:18.3]} 37... Rbc8 {[%clk 0:00:04.3]} 38. Kd3 {[%clk 0:00:17.4]}
38... Nh5 {[%clk 0:00:04.6]} 39. e5 {[%clk 0:00:17.5]} 39... Rxe6 {[%clk
0:00:05.8]} 40. Rxe6 {[%clk 0:00:18]} 40... Rf8 {[%clk 0:00:07.7]} 41. Ke3
{[%clk 0:00:16.3]} 41... Rf1 {[%clk 0:00:08.4]} 42. Re7 {[%clk 0:00:16.6]} 42...
Re1+ {[%clk 0:00:09.2]} 43. Kd2 {[%clk 0:00:17.9]} 1-0

[Event "*** Titled Tuesday 3|2 Blitz"]
[Site "Chess.com"]
[Date "2017.05.02"]
[Round "3"]
[White "eldur16"]
[Black "Spartakus1975"]
[Result "0-1"]
[WhiteElo "2453"]
[BlackElo "2592"]
[TimeControl "180+2"]
[EndTime "13:35:01 PDT"]
[Termination "Spartakus1975 won by resignation"]

1. e4 {[%clk 0:03:02]} 1... e6 {[%clk 0:02:58]} 2. d4 {[%clk 0:03:01.9]} 2... d5
{[%clk 0:02:59.6]} 3. e5 {[%clk 0:03:02.4]} 3... c5 {[%clk 0:03:00.2]} 4. c3
{[%clk 0:03:03.4]} 4... Qb6 {[%clk 0:03:01.4]} 5. Nf3 {[%clk 0:03:03.7]} 5...
Nc6 {[%clk 0:03:02.6]} 6. a3 {[%clk 0:03:02.6]} 6... Nh6 {[%clk 0:03:03.2]} 7.
b4 {[%clk 0:03:02.6]} 7... cxd4 {[%clk 0:03:03]} 8. Bxh6 {[%clk 0:03:03.1]} 8...
gxh6 {[%clk 0:03:03.1]} 9. cxd4 {[%clk 0:03:04]} 9... Bd7 {[%clk 0:03:02.6]} 10.
Ra2 {[%clk 0:02:59.7]} 10... Rc8 {[%clk 0:02:47.5]} 11. Be2 {[%clk 0:02:56.4]}
11... Rg8 {[%clk 0:02:47.1]} 12. O-O {[%clk 0:02:54.6]} 12... Rg4 {[%clk
0:02:44.7]} 13. Rd2 {[%clk 0:02:54.3]} 13... a5 {[%clk 0:02:13.6]} 14. b5 {[%clk
0:02:51.9]} 14... Ne7 {[%clk 0:02:14.3]} 15. a4 {[%clk 0:02:43.3]} 15... Nf5
{[%clk 0:02:14.8]} 16. h3 {[%clk 0:02:36.2]} 16... Rg8 {[%clk 0:02:07.5]} 17.
Bd3 {[%clk 0:02:26.6]} 17... Bb4 {[%clk 0:02:00.2]} 18. Bxf5 {[%clk 0:02:20.5]}
18... Bxd2 {[%clk 0:01:59.9]} 19. Bxh7 {[%clk 0:02:17.5]} 19... Rg7 {[%clk
0:02:00.7]} 20. Nbxd2 {[%clk 0:02:06.1]} 20... Rxh7 {[%clk 0:02:01.3]} 21. Nb3
{[%clk 0:02:06.5]} 21... Qd8 {[%clk 0:01:49.5]} 22. Nc5 {[%clk 0:02:03.6]} 22...
Rb8 {[%clk 0:01:42.1]} 23. Qd3 {[%clk 0:01:57.9]} 23... Rg7 {[%clk 0:01:42.8]}
24. Rc1 {[%clk 0:01:54.7]} 24... Rc8 {[%clk 0:01:30.1]} 25. Qd2 {[%clk
0:01:46.9]} 25... Kf8 {[%clk 0:01:06.6]} 26. Qxh6 {[%clk 0:01:42.2]} 26... b6
{[%clk 0:00:48.6]} 27. Nxd7+ {[%clk 0:01:11.8]} 27... Qxd7 {[%clk 0:00:49.3]}
28. Rxc8+ {[%clk 0:01:10.6]} 28... Qxc8 {[%clk 0:00:49.7]} 29. Qh8+ {[%clk
0:01:05.3]} 29... Rg8 {[%clk 0:00:50]} 30. Qf6 {[%clk 0:01:05.1]} 30... Rg6
{[%clk 0:00:33.7]} 31. Qh8+ {[%clk 0:01:04.8]} 31... Rg8 {[%clk 0:00:34.3]} 32.
Qh6+ {[%clk 0:01:05.6]} 32... Ke8 {[%clk 0:00:29.8]} 33. h4 {[%clk 0:00:54.2]}
33... Qc2 {[%clk 0:00:28.2]} 34. Qf4 {[%clk 0:00:48.4]} 34... Qxa4 {[%clk
0:00:17.1]} 35. h5 {[%clk 0:00:46.3]} 35... Qc2 {[%clk 0:00:13.6]} 36. h6 {[%clk
0:00:31.4]} 36... a4 {[%clk 0:00:14.7]} 37. Ng5 {[%clk 0:00:25.5]} 37... Qf5
{[%clk 0:00:09.2]} 38. h7 {[%clk 0:00:25.2]} 38... Rh8 {[%clk 0:00:09.5]} 39.
Qc1 {[%clk 0:00:24.2]} 39... Kf8 {[%clk 0:00:10.5]} 40. f3 {[%clk 0:00:20.1]}
40... Kg7 {[%clk 0:00:11.3]} 41. g4 {[%clk 0:00:19.1]} 41... Qd3 {[%clk
0:00:11.5]} 42. Qc7 {[%clk 0:00:18.9]} 42... Qxd4+ {[%clk 0:00:11.2]} 43. Kg2
{[%clk 0:00:16.8]} 43... Qd2+ {[%clk 0:00:12.1]} 44. Kg3 {[%clk 0:00:17.4]}
44... Qxg5 {[%clk 0:00:13.2]} 45. f4 {[%clk 0:00:17.4]} 45... Qh6 {[%clk
0:00:13.1]} 46. Qxb6 {[%clk 0:00:16.9]} 46... Rxh7 {[%clk 0:00:13]} 0-1

[Event "*** Titled Tuesday 3|2 Blitz"]
[Site "Chess.com"]
[Date "2017.05.02"]
[Round "3"]
[White "pedromartinez91"]
[Black "Mbneu"]
[Result "1-0"]
[WhiteElo "2299"]
[BlackElo "2141"]
[TimeControl "180+2"]
[EndTime "13:35:04 PDT"]
[Termination "pedromartinez91 won by resignation"]

1. e4 {[%clk 0:02:43.2]} 1... e5 {[%clk 0:02:59.5]} 2. Nf3 {[%clk 0:02:43.8]}
2... Nc6 {[%clk 0:03:01]} 3. Bc4 {[%clk 0:02:43.7]} 3... Nf6 {[%clk 0:03:00.7]}
4. O-O {[%clk 0:02:40.7]} 4... Bc5 {[%clk 0:03:00.3]} 5. c3 {[%clk 0:02:39.1]}
5... a6 {[%clk 0:02:58.7]} 6. d4 {[%clk 0:02:39.6]} 6... exd4 {[%clk 0:02:58.9]}
7. e5 {[%clk 0:02:39.3]} 7... d5 {[%clk 0:02:56.6]} 8. Bb3 {[%clk 0:02:29.1]}
8... Ne4 {[%clk 0:02:54.7]} 9. cxd4 {[%clk 0:02:29.6]} 9... Bb4 {[%clk
0:02:46.2]} 10. Nc3 {[%clk 0:01:58.8]} 10... Bg4 {[%clk 0:02:37.6]} 11. Nxd5
{[%clk 0:01:49.9]} 11... O-O {[%clk 0:02:26.9]} 12. h3 {[%clk 0:01:45.3]} 12...
Bxf3 {[%clk 0:02:25.3]} 13. Qxf3 {[%clk 0:01:44.1]} 13... Nd2 {[%clk 0:02:22]}
14. Bxd2 {[%clk 0:01:44.2]} 14... Bxd2 {[%clk 0:02:23.5]} 15. Qd3 {[%clk
0:01:36.4]} 15... Ba5 {[%clk 0:02:08.9]} 16. Rad1 {[%clk 0:01:36.5]} 16... Qh4
{[%clk 0:02:04.8]} 17. f4 {[%clk 0:01:00.2]} 17... Rad8 {[%clk 0:02:01]} 18. Qe4
{[%clk 0:00:59.9]} 18... Kh8 {[%clk 0:01:48.4]} 19. Ne3 {[%clk 0:00:59.8]} 19...
Bb6 {[%clk 0:01:46.5]} 20. Nf5 {[%clk 0:00:58.4]} 20... Qh5 {[%clk 0:01:42.9]}
21. Kh2 {[%clk 0:00:57.7]} 21... g6 {[%clk 0:01:40.7]} 22. Ng3 {[%clk
0:00:58.1]} 22... f5 {[%clk 0:01:01.8]} 23. exf6 {[%clk 0:00:47.2]} 23... Qh4
{[%clk 0:00:58.9]} 24. d5 {[%clk 0:00:46.5]} 24... Na5 {[%clk 0:00:58.3]} 25. f5
{[%clk 0:00:36.1]} 25... Qxf6 {[%clk 0:00:58.1]} 26. fxg6 {[%clk 0:00:36.3]}
26... Qxg6 {[%clk 0:00:59.1]} 27. Qe5+ {[%clk 0:00:31.6]} 27... Qg7 {[%clk
0:00:58.5]} 28. Qxg7+ {[%clk 0:00:29.2]} 28... Kxg7 {[%clk 0:00:59]} 29. Nf5+
{[%clk 0:00:30.6]} 29... Kh8 {[%clk 0:00:57.1]} 30. g4 {[%clk 0:00:27]} 30...
Nxb3 {[%clk 0:00:56.7]} 31. axb3 {[%clk 0:00:27.5]} 31... Bc5 {[%clk 0:00:52.7]}
32. Rfe1 {[%clk 0:00:27.4]} 32... Rde8 {[%clk 0:00:52.6]} 33. Re6 {[%clk
0:00:26.7]} 33... Rd8 {[%clk 0:00:44.1]} 34. Kg2 {[%clk 0:00:25.2]} 34... Rd7
{[%clk 0:00:38.8]} 35. Kf3 {[%clk 0:00:22.1]} 35... Rfd8 {[%clk 0:00:39.1]} 36.
Ke4 {[%clk 0:00:23]} 36... Kg8 {[%clk 0:00:37.9]} 37. Nh6+ {[%clk 0:00:22.7]}
37... Kg7 {[%clk 0:00:38]} 38. Rf1 {[%clk 0:00:22.8]} 38... c6 {[%clk
0:00:37.6]} 39. Nf5+ {[%clk 0:00:19.1]} 39... Kg8 {[%clk 0:00:37.3]} 40. d6
{[%clk 0:00:19.4]} 40... Bxd6 {[%clk 0:00:27.5]} 41. Rd1 {[%clk 0:00:19.6]}
41... Bc7 {[%clk 0:00:27.8]} 42. Rxd7 {[%clk 0:00:19.6]} 42... Rxd7 {[%clk
0:00:28.6]} 43. Re8+ {[%clk 0:00:21.1]} 43... Kf7 {[%clk 0:00:28]} 44. Rh8
{[%clk 0:00:22]} 44... Ke6 {[%clk 0:00:28.9]} 45. Nd4+ {[%clk 0:00:20.7]} 45...
Kd6 {[%clk 0:00:29.5]} 46. b4 {[%clk 0:00:21.5]} 46... c5 {[%clk 0:00:29.2]} 47.
bxc5+ {[%clk 0:00:19.2]} 47... Kxc5 {[%clk 0:00:30.1]} 48. Ne6+ {[%clk
0:00:19.6]} 48... Kb4 {[%clk 0:00:30.3]} 49. g5 {[%clk 0:00:20.6]} 49... Kb3
{[%clk 0:00:30.6]} 50. Rc8 {[%clk 0:00:20.5]} 50... Ba5 {[%clk 0:00:30.2]} 51.
Nc5+ {[%clk 0:00:19.8]} 1-0

[Event "*** Titled Tuesday 3|2 Blitz"]
[Site "Chess.com"]
[Date "2017.05.02"]
[Round "3"]
[White "BigMak2500"]
[Black "wonderfultime"]
[Result "0-1"]
[WhiteElo "2389"]
[BlackElo "2575"]
[TimeControl "180+2"]
[EndTime "13:35:25 PDT"]
[Termination "wonderfultime won by resignation"]

1. d4 {[%clk 0:03:02]} 1... d5 {[%clk 0:02:59.7]} 2. c4 {[%clk 0:03:02.8]} 2...
c6 {[%clk 0:03:01.1]} 3. Nf3 {[%clk 0:03:03.4]} 3... Nf6 {[%clk 0:03:02.5]} 4.
Nc3 {[%clk 0:03:04.6]} 4... dxc4 {[%clk 0:03:03.6]} 5. a4 {[%clk 0:03:05.2]}
5... Bf5 {[%clk 0:03:04.9]} 6. Ne5 {[%clk 0:03:06.2]} 6... Nbd7 {[%clk
0:03:05.2]} 7. Nxc4 {[%clk 0:03:07.2]} 7... Nb6 {[%clk 0:03:06.3]} 8. Ne3 {[%clk
0:03:08.4]} 8... Bg6 {[%clk 0:03:05.2]} 9. a5 {[%clk 0:03:09.5]} 9... Nbd7
{[%clk 0:02:56]} 10. g3 {[%clk 0:02:56.8]} 10... e6 {[%clk 0:02:56.8]} 11. Bg2
{[%clk 0:02:57.8]} 11... Be7 {[%clk 0:02:55.9]} 12. O-O {[%clk 0:02:58.5]} 12...
O-O {[%clk 0:02:57]} 13. a6 {[%clk 0:02:58.1]} 13... Qc7 {[%clk 0:02:50.6]} 14.
axb7 {[%clk 0:02:58.9]} 14... Qxb7 {[%clk 0:02:52.5]} 15. Nc4 {[%clk 0:02:56.5]}
15... Nd5 {[%clk 0:02:43.7]} 16. e4 {[%clk 0:02:48.3]} 16... Nb4 {[%clk
0:02:41.7]} 17. Na5 {[%clk 0:02:43.4]} 17... Qb6 {[%clk 0:02:38.7]} 18. Be3
{[%clk 0:02:41.2]} 18... Rfd8 {[%clk 0:02:08]} 19. d5 {[%clk 0:02:25]} 19... Nc5
{[%clk 0:01:48.8]} 20. Nc4 {[%clk 0:02:23.4]} 20... Qc7 {[%clk 0:01:34.7]} 21.
d6 {[%clk 0:02:24.4]} 21... Bxd6 {[%clk 0:01:31.6]} 22. Nxd6 {[%clk 0:02:25.3]}
22... Rxd6 {[%clk 0:01:33.5]} 23. Qe2 {[%clk 0:02:06.5]} 23... Ncd3 {[%clk
0:01:33.8]} 24. Ra4 {[%clk 0:01:36.1]} 24... a5 {[%clk 0:01:28.6]} 25. h4 {[%clk
0:01:20.6]} 25... f6 {[%clk 0:01:24.9]} 26. h5 {[%clk 0:01:13.5]} 26... Bf7
{[%clk 0:01:26.2]} 27. h6 {[%clk 0:01:14.8]} 27... g6 {[%clk 0:01:27.5]} 28. f4
{[%clk 0:01:10.7]} 28... Rdd8 {[%clk 0:01:10.2]} 29. f5 {[%clk 0:01:04.1]} 29...
exf5 {[%clk 0:01:06.5]} 30. exf5 {[%clk 0:01:05.2]} 30... g5 {[%clk 0:01:05.2]}
31. Ne4 {[%clk 0:00:40.1]} 31... Qe5 {[%clk 0:01:00.5]} 32. Raa1 {[%clk
0:00:22.6]} 32... Re8 {[%clk 0:00:53.7]} 33. Rad1 {[%clk 0:00:22.1]} 33... Bd5
{[%clk 0:00:53.9]} 34. Rxd3 {[%clk 0:00:22.7]} 34... Bxe4 {[%clk 0:00:48.1]} 35.
Rc3 {[%clk 0:00:21.7]} 35... Bxg2 {[%clk 0:00:45.5]} 36. Qxg2 {[%clk 0:00:22.5]}
36... Nd5 {[%clk 0:00:45.9]} 37. Re1 {[%clk 0:00:16.1]} 37... Nxc3 {[%clk
0:00:42.9]} 38. bxc3 {[%clk 0:00:17.6]} 38... Qxf5 {[%clk 0:00:44.3]} 39. Qxc6
{[%clk 0:00:18]} 39... Qe6 {[%clk 0:00:42.9]} 40. Qf3 {[%clk 0:00:17.3]} 40...
Qf7 {[%clk 0:00:42.3]} 41. Rf1 {[%clk 0:00:17.6]} 41... a4 {[%clk 0:00:43.1]}
42. Bd4 {[%clk 0:00:18.8]} 42... Rf8 {[%clk 0:00:40.3]} 43. Qf5 {[%clk
0:00:17.9]} 43... Ra6 {[%clk 0:00:40]} 44. Qb5 {[%clk 0:00:17.9]} 44... Rfa8
{[%clk 0:00:34.9]} 45. Rf5 {[%clk 0:00:10.5]} 45... a3 {[%clk 0:00:30.8]} 46. c4
{[%clk 0:00:11.8]} 46... a2 {[%clk 0:00:31.2]} 47. Ba1 {[%clk 0:00:13.4]} 47...
Re6 {[%clk 0:00:29]} 48. Rxg5+ {[%clk 0:00:14.2]} 48... fxg5 {[%clk 0:00:29.4]}
49. Qxg5+ {[%clk 0:00:15.9]} 49... Rg6 {[%clk 0:00:30.8]} 50. Qe5 {[%clk
0:00:14.4]} 50... Rf6 {[%clk 0:00:29.6]} 51. Qg5+ {[%clk 0:00:12.9]} 51... Kf8
{[%clk 0:00:30.9]} 52. Qc5+ {[%clk 0:00:06.7]} 52... Qe7 {[%clk 0:00:32.4]} 53.
Qd5 {[%clk 0:00:06.7]} 53... Rd8 {[%clk 0:00:31]} 54. Qg5 {[%clk 0:00:06.5]}
54... Rf1+ {[%clk 0:00:31.4]} 55. Kg2 {[%clk 0:00:07.9]} 55... Qxg5 {[%clk
0:00:33.3]} 0-1

[Event "*** Titled Tuesday 3|2 Blitz"]
[Site "Chess.com"]
[Date "2017.05.02"]
[Round "3"]
[White "Drags95"]
[Black "iturrizaga"]
[Result "0-1"]
[WhiteElo "2534"]
[BlackElo "2674"]
[TimeControl "180+2"]
[EndTime "13:35:27 PDT"]
[Termination "iturrizaga won by resignation"]

1. e4 {[%clk 0:03:02]} 1... c5 {[%clk 0:03:01.5]} 2. Nf3 {[%clk 0:03:03.1]} 2...
g6 {[%clk 0:03:02.7]} 3. d4 {[%clk 0:02:58.8]} 3... cxd4 {[%clk 0:03:04.6]} 4.
Nxd4 {[%clk 0:03:00.4]} 4... Nc6 {[%clk 0:03:05.9]} 5. c4 {[%clk 0:03:01.6]}
5... Nf6 {[%clk 0:03:07.4]} 6. Nc3 {[%clk 0:03:02.7]} 6... d6 {[%clk 0:03:09.1]}
7. Be2 {[%clk 0:03:00.8]} 7... Bg7 {[%clk 0:03:10.7]} 8. Be3 {[%clk 0:03:00.5]}
8... O-O {[%clk 0:03:12.3]} 9. O-O {[%clk 0:03:00.4]} 9... Bd7 {[%clk
0:03:13.9]} 10. Qd2 {[%clk 0:02:57.9]} 10... Nxd4 {[%clk 0:03:15.2]} 11. Bxd4
{[%clk 0:02:59.6]} 11... Bc6 {[%clk 0:03:17.1]} 12. f3 {[%clk 0:02:57.5]} 12...
a5 {[%clk 0:03:18.7]} 13. b3 {[%clk 0:02:55.2]} 13... Nd7 {[%clk 0:03:20.3]} 14.
Be3 {[%clk 0:02:52.1]} 14... Nc5 {[%clk 0:03:21.9]} 15. Rab1 {[%clk 0:02:51.7]}
15... Be5 {[%clk 0:03:23.5]} 16. a3 {[%clk 0:02:35.1]} 16... e6 {[%clk
0:03:04.5]} 17. Kh1 {[%clk 0:02:15.9]} 17... Qh4 {[%clk 0:02:57.8]} 18. Bg1
{[%clk 0:02:16.7]} 18... f5 {[%clk 0:02:58.2]} 19. b4 {[%clk 0:02:11.5]} 19...
axb4 {[%clk 0:02:53.4]} 20. axb4 {[%clk 0:02:13.4]} 20... Ra3 {[%clk 0:02:20.3]}
21. bxc5 {[%clk 0:01:55.9]} 21... Rxc3 {[%clk 0:02:01]} 22. cxd6 {[%clk
0:01:00.7]} 22... fxe4 {[%clk 0:01:50.9]} 23. fxe4 {[%clk 0:00:48.6]} 23... Qxe4
{[%clk 0:01:42.7]} 24. Rxf8+ {[%clk 0:00:42]} 24... Kxf8 {[%clk 0:01:41]} 25.
Rf1+ {[%clk 0:00:43]} 25... Kg7 {[%clk 0:01:29]} 26. Bf3 {[%clk 0:00:42.1]}
26... Rxf3 {[%clk 0:01:26.9]} 27. Rxf3 {[%clk 0:00:36.1]} 27... Qxf3 {[%clk
0:01:27.9]} 28. d7 {[%clk 0:00:35.5]} 28... Bf6 {[%clk 0:00:39.7]} 29. gxf3
{[%clk 0:00:36.6]} 29... Bxf3+ {[%clk 0:00:38.8]} 30. Qg2 {[%clk 0:00:38.5]}
30... Bxg2+ {[%clk 0:00:39.5]} 31. Kxg2 {[%clk 0:00:40.4]} 31... Bd8 {[%clk
0:00:38.7]} 32. Kf3 {[%clk 0:00:24.6]} 32... Kf6 {[%clk 0:00:36]} 33. Bc5 {[%clk
0:00:26]} 33... e5 {[%clk 0:00:36.9]} 34. Ke4 {[%clk 0:00:25.7]} 34... Ke6
{[%clk 0:00:37.8]} 35. h3 {[%clk 0:00:25.2]} 35... Bf6 {[%clk 0:00:27.5]} 36.
Be3 {[%clk 0:00:14.9]} 36... g5 {[%clk 0:00:21.4]} 37. Bd2 {[%clk 0:00:10.5]}
37... h5 {[%clk 0:00:17.1]} 38. Bc3 {[%clk 0:00:11.5]} 38... g4 {[%clk
0:00:14.7]} 39. hxg4 {[%clk 0:00:11.6]} 39... hxg4 {[%clk 0:00:16.4]} 40. d8=Q
{[%clk 0:00:13.1]} 40... Bxd8 {[%clk 0:00:17.4]} 41. Bxe5 {[%clk 0:00:14.9]}
41... Bg5 {[%clk 0:00:17.5]} 42. Bg3 {[%clk 0:00:15.2]} 42... Bd2 {[%clk
0:00:18.3]} 43. Kd3 {[%clk 0:00:15.9]} 43... Bb4 {[%clk 0:00:18.4]} 44. Ke4
{[%clk 0:00:17]} 44... Bd6 {[%clk 0:00:19.6]} 45. Be1 {[%clk 0:00:13.4]} 45...
g3 {[%clk 0:00:20]} 46. Kf3 {[%clk 0:00:13.6]} 46... Kf5 {[%clk 0:00:21.2]} 47.
c5 {[%clk 0:00:12.5]} 47... Bc7 {[%clk 0:00:21.1]} 48. Bc3 {[%clk 0:00:11.9]}
48... Ke6 {[%clk 0:00:22.1]} 49. Bd4 {[%clk 0:00:11.9]} 49... Kd5 {[%clk
0:00:23.1]} 50. Be3 {[%clk 0:00:12.9]} 50... Be5 {[%clk 0:00:23.2]} 51. Bd2
{[%clk 0:00:03]} 51... Kxc5 {[%clk 0:00:22.8]} 0-1

[Event "*** Titled Tuesday 3|2 Blitz"]
[Site "Chess.com"]
[Date "2017.05.02"]
[Round "3"]
[White "DrVitman"]
[Black "Keaton87"]
[Result "1-0"]
[WhiteElo "2614"]
[BlackElo "2473"]
[TimeControl "180+2"]
[EndTime "13:35:36 PDT"]
[Termination "DrVitman won by resignation"]

1. d4 {[%clk 0:03:02]} 1... Nf6 {[%clk 0:03:00.1]} 2. c4 {[%clk 0:03:03.1]} 2...
g6 {[%clk 0:03:00.9]} 3. Nc3 {[%clk 0:03:03.9]} 3... Bg7 {[%clk 0:03:01.7]} 4.
e4 {[%clk 0:03:04.7]} 4... d6 {[%clk 0:03:02.7]} 5. Be2 {[%clk 0:03:05.7]} 5...
O-O {[%clk 0:03:03.7]} 6. Be3 {[%clk 0:03:07.2]} 6... c6 {[%clk 0:03:00]} 7. Nf3
{[%clk 0:03:06.8]} 7... e5 {[%clk 0:02:59.4]} 8. d5 {[%clk 0:03:07.3]} 8... c5
{[%clk 0:02:59.3]} 9. Nd2 {[%clk 0:03:06.1]} 9... Kh8 {[%clk 0:02:55.9]} 10. h4
{[%clk 0:03:06.2]} 10... Ng8 {[%clk 0:02:55.6]} 11. h5 {[%clk 0:03:06.9]} 11...
Na6 {[%clk 0:02:50.8]} 12. hxg6 {[%clk 0:03:05.2]} 12... fxg6 {[%clk 0:02:51.1]}
13. a3 {[%clk 0:02:58.2]} 13... Nc7 {[%clk 0:02:50.3]} 14. Bg4 {[%clk
0:02:58.7]} 14... Nf6 {[%clk 0:02:45.7]} 15. Bxc8 {[%clk 0:02:58.8]} 15... Qxc8
{[%clk 0:02:47.2]} 16. Qe2 {[%clk 0:02:55]} 16... Qg4 {[%clk 0:02:37.4]} 17. f3
{[%clk 0:02:50.1]} 17... Qd7 {[%clk 0:02:30.5]} 18. g4 {[%clk 0:02:49.4]} 18...
a6 {[%clk 0:02:21.9]} 19. a4 {[%clk 0:02:49.5]} 19... b5 {[%clk 0:02:20]} 20. b3
{[%clk 0:02:27.8]} 20... bxa4 {[%clk 0:02:13.9]} 21. Rxa4 {[%clk 0:02:26]} 21...
h5 {[%clk 0:02:11.6]} 22. Bg5 {[%clk 0:02:18.7]} 22... Nh7 {[%clk 0:02:08.6]}
23. Be3 {[%clk 0:02:11]} 23... Nf6 {[%clk 0:02:04.7]} 24. Qg2 {[%clk 0:02:04.2]}
24... Kg8 {[%clk 0:02:00.9]} 25. gxh5 {[%clk 0:02:04.5]} 25... gxh5 {[%clk
0:01:57.8]} 26. Bg5 {[%clk 0:01:56.6]} 26... Nce8 {[%clk 0:01:51.1]} 27. Ke2
{[%clk 0:01:50.5]} 27... Kf7 {[%clk 0:01:52]} 28. Qh3 {[%clk 0:01:32]} 28...
Qxh3 {[%clk 0:01:51.6]} 29. Rxh3 {[%clk 0:01:33.9]} 29... Kg6 {[%clk 0:01:49.3]}
30. Bh4 {[%clk 0:01:29.7]} 30... Bh6 {[%clk 0:01:46.2]} 31. Nd1 {[%clk
0:01:26.4]} 31... Bxd2 {[%clk 0:01:42.8]} 32. Kxd2 {[%clk 0:01:27.4]} 32... Kf7
{[%clk 0:01:40.3]} 33. Ne3 {[%clk 0:01:28.2]} 33... Rg8 {[%clk 0:01:41.2]} 34.
Nf5 {[%clk 0:01:25.3]} 34... Rg2+ {[%clk 0:01:41.7]} 35. Kc3 {[%clk 0:01:25.3]}
35... a5 {[%clk 0:01:20.4]} 36. Bxf6 {[%clk 0:01:24.9]} 36... Kxf6 {[%clk
0:01:19.7]} 37. Rxh5 {[%clk 0:01:25.5]} 37... Kg6 {[%clk 0:01:16]} 38. Rh8
{[%clk 0:01:21.2]} 38... Rf2 {[%clk 0:01:11.6]} 39. Nxd6 {[%clk 0:00:56.3]}
39... Rxf3+ {[%clk 0:01:12]} 40. Kb2 {[%clk 0:00:57.2]} 40... Rb8 {[%clk
0:01:08.8]} 41. Nb5 {[%clk 0:00:53.4]} 41... Kg7 {[%clk 0:01:05.2]} 42. Rh5
{[%clk 0:00:49.3]} 42... Nf6 {[%clk 0:01:02.4]} 43. Rxe5 {[%clk 0:00:50.1]}
43... Rh8 {[%clk 0:01:03.4]} 44. Rg5+ {[%clk 0:00:29.1]} 44... Kf8 {[%clk
0:00:59.1]} 45. Rf5 {[%clk 0:00:28.2]} 45... Rh2+ {[%clk 0:00:43.3]} 46. Ka3
{[%clk 0:00:29]} 46... Rxf5 {[%clk 0:00:37.7]} 47. exf5 {[%clk 0:00:29.5]} 47...
Ne4 {[%clk 0:00:39.6]} 48. Rxa5 {[%clk 0:00:28.9]} 48... Rh1 {[%clk 0:00:37.4]}
49. Ra8+ {[%clk 0:00:27.2]} 49... Ke7 {[%clk 0:00:38]} 50. Ra7+ {[%clk
0:00:28.5]} 50... Kf6 {[%clk 0:00:38.6]} 51. d6 {[%clk 0:00:29.5]} 51... Nxd6
{[%clk 0:00:36.7]} 52. Rc7 {[%clk 0:00:28.4]} 52... Nxb5+ {[%clk 0:00:24.5]} 53.
cxb5 {[%clk 0:00:28.7]} 53... Kxf5 {[%clk 0:00:26.4]} 54. Rxc5+ {[%clk
0:00:29.1]} 54... Ke6 {[%clk 0:00:27.5]} 55. b6 {[%clk 0:00:29.2]} 55... Kd7
{[%clk 0:00:25.2]} 56. Kb4 {[%clk 0:00:29.1]} 56... Rh3 {[%clk 0:00:13]} 57. b7
{[%clk 0:00:27]} 57... Rh8 {[%clk 0:00:13]} 58. Kb5 {[%clk 0:00:28]} 1-0